bitfinex-derivatives/quotes_BTCF0:USTF0_20250713
["timestamp","ask_amount","ask_price","bid_price","bid_amount"]
[1752421344053,0.55227196,118760.0,118750.0,1.82185364]
[1752421344253,0.55227196,118760.0,118750.0,1.8135859]
[1752421344758,0.57708196,118760.0,118750.0,1.8135859]
[1752421344957,0.55227196,118760.0,118750.0,1.8145859]
[1752421345453,0.02051173,118760.0,118750.0,1.8165859]
[1752421346755,0.23674343,118760.0,118750.0,1.8175859]
[1752421347151,0.52316196,118760.0,118750.0,1.8175859]
[1752421347358,0.55569196,118760.0,118750.0,1.8175859]
[1752421347758,0.26927343,118760.0,118750.0,1.8175859]
[1752421347956,0.55569196,118760.0,118750.0,1.8175859]
[1752421348660,0.5557167,118760.0,118750.0,1.8175859]
[1752421349265,0.387385,118760.0,118750.0,1.8175859]
[1752421349962,0.5557167,118760.0,118750.0,1.8175859]
[1752421350866,0.02053647,118760.0,118750.0,1.8175859]
[1752421352264,0.02053647,118760.0,118750.0,2.10400443]
[1752421353661,0.02020622,118760.0,118750.0,2.10400443]
[1752421356468,0.004,118770.0,118760.0,0.2225518]
[1752421356770,0.004,118770.0,118760.0,0.6329618]
[1752421357567,0.005,118770.0,118760.0,0.6349618]
[1752421358660,0.005,118770.0,118760.0,0.92138033]
[1752421359770,0.006,118770.0,118760.0,0.92338033]
[1752421360768,0.60436668,118790.0,118760.0,0.75504853]
[1752421360968,0.55274708,118790.0,118780.0,0.2679435]
[1752421361161,0.55274708,118790.0,118780.0,0.28452375]
[1752421361671,0.55274708,118790.0,118780.0,0.28352375]
[1752421362270,0.55374708,118790.0,118780.0,0.28452375]
[1752421362771,0.38544748,118790.0,118780.0,0.28452375]
[1752421363169,0.36784853,118790.0,118780.0,0.64532375]
[1752421363571,0.36884853,118790.0,118780.0,0.64532375]
[1752421364475,0.53713783,118790.0,118780.0,0.64532375]
[1752421365475,0.53713783,118790.0,118780.0,0.72257977]
[1752421365672,0.53713783,118790.0,118780.0,0.35356223]
[1752421365974,0.53713783,118790.0,118780.0,0.71436223]
[1752421367772,0.53713783,118790.0,118780.0,0.69520356]
[1752421368277,0.2507193,118790.0,118780.0,0.69520356]
[1752421368479,0.55533243,118790.0,118780.0,0.33440356]
[1752421368977,0.2689139,118790.0,118780.0,0.33440356]
[1752421369177,0.55533243,118790.0,118780.0,0.69520356]
[1752421369374,0.55533243,118790.0,118780.0,0.33440356]
[1752421369774,0.55533243,118790.0,118780.0,0.69520356]
[1752421370174,0.2689139,118790.0,118780.0,0.69520356]
[1752421370376,0.55533243,118790.0,118780.0,0.69520356]
[1752421371078,0.48330703,118790.0,118780.0,0.69520356]
[1752421374777,0.48330703,118790.0,118780.0,0.33440356]
[1752421374983,0.72147016,118790.0,118780.0,0.28798356]
[1752421377181,0.73759756,118790.0,118780.0,0.04149025]
[1752421377386,1.31279069,118790.0,118780.0,0.01858025]
[1752421379081,0.95560571,118790.0,118780.0,0.01858025]
[1752421381081,0.95561345,118790.0,118780.0,0.01858025]
[1752421381489,0.95561345,118790.0,118780.0,0.18688375]
[1752421381681,1.54557345,118790.0,118780.0,0.18688375]
[1752421383289,1.54557345,118790.0,118780.0,0.01858025]
[1752421383882,1.54557345,118790.0,118780.0,0.18688375]
[1752421384283,1.54557345,118790.0,118780.0,0.01858025]
[1752421387691,0.2713535,118780.0,118770.0,0.0002]
[1752421387880,0.2244576,118770.0,118760.0,0.001884]
[1752421388087,1.82813633,118770.0,118760.0,0.001684]
[1752421388886,1.54214192,118770.0,118760.0,0.001684]
[1752421389296,1.71054192,118770.0,118760.0,0.001684]
[1752421389497,1.99653633,118770.0,118760.0,0.001684]
[1752421390200,1.99753633,118770.0,118760.0,0.005684]
[1752421390392,1.99853633,118770.0,118760.0,0.008684]
[1752421391689,1.83013633,118770.0,118760.0,0.008684]
[1752421392491,1.83009633,118770.0,118760.0,0.008684]
[1752421392895,1.54410192,118770.0,118760.0,0.008684]
[1752421393897,0.95438192,118770.0,118760.0,0.008684]
[1752421394087,1.54406192,118770.0,118760.0,0.008684]
[1752421394294,1.90486192,118770.0,118760.0,0.008684]
[1752421394493,0.30758751,118770.0,118760.0,0.2311258]
[1752421394697,1.18326192,118770.0,118760.0,0.2767258]
[1752421395402,1.54406192,118770.0,118760.0,0.2767258]
[1752421395590,0.95438192,118770.0,118760.0,0.2767258]
[1752421395794,1.54402192,118770.0,118760.0,0.2767258]
[1752421397402,1.18322192,118770.0,118760.0,0.2767258]
[1752421397601,1.54402192,118770.0,118760.0,0.2767258]
[1752421397803,1.25802751,118770.0,118760.0,0.2767258]
[1752421398105,1.54402192,118770.0,118760.0,0.2767258]
[1752421398604,1.54402192,118770.0,118760.0,0.2311258]
[1752421399302,1.18322192,118770.0,118760.0,0.2311258]
[1752421399505,1.54402192,118770.0,118760.0,0.032134]
[1752421399998,1.54402192,118770.0,118760.0,0.2004658]
[1752421400193,1.54402192,118770.0,118760.0,0.1770158]
[1752421400398,1.54402192,118770.0,118760.0,0.032134]
[1752421400800,1.54402192,118770.0,118760.0,0.2004658]
[1752421401501,1.54402192,118770.0,118760.0,0.032134]
[1752421403506,1.54402192,118770.0,118760.0,0.2004658]
[1752421404402,0.66838751,118770.0,118760.0,0.2306658]
[1752421404607,1.18298192,118770.0,118760.0,0.2780858]
[1752421405103,0.59358192,118770.0,118760.0,0.2780858]
[1752421405308,1.18298192,118770.0,118760.0,0.2780858]
[1752421408907,1.18298192,118770.0,118760.0,0.2306658]
[1752421410298,1.54378192,118770.0,118760.0,0.2306658]
[1752421410707,1.18298192,118770.0,118760.0,0.2306658]
[1752421411410,0.59358192,118770.0,118760.0,0.2780858]
[1752421411709,1.18286192,118770.0,118760.0,0.6388858]
[1752421412105,1.18286192,118770.0,118760.0,0.2780858]
[1752421413110,1.18286192,118770.0,118760.0,0.2306658]
[1752421413518,1.54366192,118770.0,118760.0,0.2004658]
[1752421414299,1.54366192,118770.0,118740.0,0.3608]
[1752421414505,1.54366192,118770.0,118720.0,0.06423872]
[1752421414506,0.1684026,118710.0,118700.0,0.07023]
[1752421414712,0.168431,118690.0,118680.0,0.73937781]
[1752421414910,1.04358541,118690.0,118680.0,0.27249823]
[1752421415202,1.40438541,118690.0,118680.0,0.27249823]
[1752421415407,1.47109428,118690.0,118680.0,0.27249823]
[1752421415809,1.47209428,118690.0,118680.0,0.28049823]
[1752421416412,1.47209428,118690.0,118680.0,0.64729823]
[1752421416413,1.11229428,118690.0,118680.0,0.64729823]
[1752421417108,0.52313428,118690.0,118680.0,0.64729823]
[1752421417510,1.11233428,118690.0,118680.0,0.64729823]
[1752421417705,0.52313428,118690.0,118680.0,0.64729823]
[1752421418013,1.11233428,118690.0,118680.0,0.64729823]
[1752421420013,1.13240811,118690.0,118680.0,0.64729823]
[1752421421610,1.49320811,118690.0,118680.0,0.08785303]
[1752421421916,1.50924517,118690.0,118680.0,0.01762303]
[1752421422115,1.96375158,118690.0,118680.0,0.01762303]
[1752421422916,0.1684452,118680.0,118670.0,0.00094]
[1752421423107,0.88511743,118680.0,118670.0,0.00094]
[1752421424007,0.88511743,118680.0,118670.0,0.1693994]
[1752421424209,1.47439743,118680.0,118670.0,0.2396294]
[1752421424818,1.47439743,118680.0,118670.0,0.07117]
[1752421425520,1.47639743,118680.0,118670.0,0.07117]
[1752421426713,1.47639743,118680.0,118670.0,0.00094]
[1752421428720,1.47739743,118680.0,118670.0,0.00094]
[1752421431010,0.88811743,118680.0,118670.0,0.00094]
[1752421431223,1.47743743,118680.0,118670.0,0.00094]
[1752421433320,1.64596543,118680.0,118670.0,0.00094]
[1752421433721,1.47743743,118680.0,118670.0,0.00094]
[1752421436027,1.47747743,118680.0,118670.0,0.00094]
[1752421439427,0.1684594,118670.0,118660.0,1e-07]
[1752421439633,0.1684878,118650.0,118640.0,0.00362426]
[1752421439830,2.18700992,118650.0,118640.0,0.00362426]
[1752421440024,2.35557792,118650.0,118640.0,0.00362426]
[1752421440522,1.09466112,118650.0,118640.0,0.00362426]
[1752421440726,2.35557792,118650.0,118640.0,0.00362426]
[1752421440921,1.26189152,118650.0,118640.0,0.00362426]
[1752421441224,0.54029152,118650.0,118640.0,0.27453626]
[1752421441426,1.12965152,118650.0,118640.0,0.27453626]
[1752421441622,1.12965152,118650.0,118640.0,0.10603426]
[1752421441926,1.49866063,118650.0,118640.0,0.10603426]
[1752421442128,1.49866063,118650.0,118640.0,0.00362426]
[1752421442530,1.83445903,118650.0,118640.0,0.00362426]
[1752421442923,1.74117699,118650.0,118640.0,0.00362426]
[1752421443124,1.14360788,118650.0,118640.0,0.00362426]
[1752421443332,1.73304788,118650.0,118640.0,0.06991013]
[1752421443826,1.4483905,118650.0,118640.0,0.06991013]
[1752421444021,1.4484305,118650.0,118640.0,0.27079213]
[1752421444428,1.50901307,118650.0,118640.0,0.27079213]
[1752421444828,1.50901307,118650.0,118640.0,0.10229013]
[1752421445027,1.4484305,118650.0,118640.0,0.10229013]
[1752421445224,1.52415872,118650.0,118640.0,0.10229013]
[1752421445424,1.54485872,118650.0,118640.0,0.22525747]
[1752421446128,1.54485872,118650.0,118640.0,0.05675547]
[1752421446437,0.98549872,118650.0,118640.0,0.22525747]
[1752421446634,1.57485872,118650.0,118640.0,0.22525747]
[1752421447129,1.57485872,118650.0,118640.0,0.05675547]
[1752421447335,0.69884134,118650.0,118640.0,0.25021747]
[1752421447634,1.57485872,118650.0,118640.0,0.25021747]
[1752421447830,0.3804827,118650.0,118640.0,0.25021747]
[1752421448036,0.73809354,118650.0,118640.0,0.61101747]
[1752421448233,1.1175105,118650.0,118640.0,0.25021747]
[1752421448436,1.19323872,118650.0,118640.0,0.61101747]
[1752421448735,1.19323872,118650.0,118640.0,0.25021747]
[1752421448937,1.19323872,118650.0,118640.0,0.61101747]
[1752421449232,1.1175105,118650.0,118640.0,0.25021747]
[1752421449437,0.90658134,118650.0,118640.0,0.25021747]
[1752421449637,1.1175105,118650.0,118640.0,0.61101747]
[1752421450530,1.1408705,118650.0,118640.0,0.61101747]
[1752421450734,1.1408705,118650.0,118640.0,0.25021747]
[1752421451035,1.21659872,118650.0,118640.0,0.25021747]
[1752421451339,1.21659872,118650.0,118640.0,0.61101747]
[1752421452542,0.92994134,118650.0,118640.0,0.61101747]
[1752421452743,1.21659872,118650.0,118640.0,0.61101747]
[1752421452943,1.21659872,118650.0,118640.0,0.25021747]
[1752421453442,1.21659872,118650.0,118640.0,0.61101747]
[1752421454238,0.62723872,118650.0,118640.0,0.61101747]
[1752421454433,1.21655872,118650.0,118640.0,0.25021747]
[1752421454741,1.21655872,118650.0,118640.0,0.61101747]
[1752421455043,1.21655872,118650.0,118640.0,0.25021747]
[1752421455343,1.21655872,118650.0,118640.0,0.61101747]
[1752421455738,1.21655872,118650.0,118640.0,0.25021747]
[1752421457042,1.21655872,118650.0,118640.0,0.25137397]
[1752421458136,0.11873354,118650.0,118640.0,0.89883135]
[1752421458336,0.02707383,118650.0,118640.0,0.89883135]
[1752421459250,0.08741224,118650.0,118640.0,0.89883135]
[1752421459551,0.02707383,118650.0,118640.0,0.89883135]
[1752421463150,0.02707383,118650.0,118640.0,0.61217397]
[1752421465554,0.02707383,118650.0,118640.0,0.89883135]
[1752421470961,0.02707383,118650.0,118640.0,0.61217397]
[1752421471963,0.31373121,118650.0,118640.0,0.61217397]
[1752421474061,0.31335654,118650.0,118640.0,0.61217397]
[1752421475565,0.02669916,118650.0,118640.0,0.61217397]
[1752421475867,0.31335654,118650.0,118640.0,0.61217397]
[1752421476069,0.02669916,118650.0,118640.0,0.61217397]
[1752421476969,0.02669916,118650.0,118640.0,0.89883135]
[1752421478660,0.02669916,118650.0,118640.0,1.06739935]
[1752421478965,0.01593149,118670.0,118660.0,0.2727335]
[1752421479270,0.01593149,118670.0,118660.0,1.2225335]
[1752421480159,0.01793149,118670.0,118660.0,1.22369]
[1752421480366,0.02493149,118670.0,118660.0,1.22369]
[1752421484869,0.02493149,118670.0,118660.0,1.87114738]
[1752421485069,0.02493149,118670.0,118660.0,1.58449]
[1752421486268,0.02493149,118670.0,118660.0,1.87114738]
[1752421487476,0.01793149,118670.0,118660.0,1.87114738]
[1752421487773,0.02093149,118670.0,118660.0,1.87214738]
[1752421487974,0.01993149,118670.0,118660.0,1.87214738]
[1752421489474,0.01993149,118670.0,118660.0,1.8880905]
[1752421490670,0.004,118670.0,118660.0,1.8880905]
[1752421490868,0.02362115,118670.0,118660.0,1.8880905]
[1752421496678,0.02362115,118670.0,118660.0,1.60143312]
[1752421496878,0.02362115,118670.0,118660.0,1.8880905]
[1752421499979,0.34043853,118670.0,118660.0,1.01243312]
[1752421500284,0.57316803,118670.0,118660.0,0.65163312]
[1752421500584,0.59091017,118670.0,118660.0,0.65163312]
[1752421500784,0.59091017,118670.0,118660.0,0.23449332]
[1752421501084,0.59091017,118670.0,118660.0,0.01809962]
[1752421501378,0.59091017,118670.0,118660.0,0.18657332]
[1752421502486,0.30425279,118670.0,118660.0,0.28849332]
[1752421502684,0.59091017,118670.0,118660.0,0.28849332]
[1752421502982,1.17939017,118670.0,118660.0,0.28849332]
[1752421503183,0.59091017,118670.0,118660.0,0.28849332]
[1752421503382,1.17939017,118670.0,118660.0,0.28849332]
[1752421503584,0.59091017,118670.0,118660.0,0.28849332]
[1752421503882,1.17939017,118670.0,118660.0,0.28849332]
[1752421504680,1.54019017,118670.0,118660.0,0.28849332]
[1752421504879,1.54019017,118670.0,118660.0,0.01809962]
[1752421506080,1.54019017,118670.0,118660.0,0.18657332]
[1752421506787,1.54019017,118670.0,118660.0,0.01809962]
[1752421509889,1.54019017,118670.0,118660.0,0.06431962]
[1752421510181,1.54019017,118670.0,118660.0,0.08721962]
[1752421512288,1.54019017,118670.0,118660.0,0.28849332]
[1752421512289,0.95171017,118670.0,118660.0,0.28849332]
[1752421512489,1.17931017,118670.0,118660.0,0.28849332]
[1752421512984,0.59091017,118670.0,118660.0,0.28849332]
[1752421513190,1.17927017,118670.0,118660.0,0.28849332]
[1752421515792,1.54007017,118670.0,118660.0,0.08721962]
[1752421516092,1.17927017,118670.0,118660.0,0.08721962]
[1752421516292,1.54007017,118670.0,118660.0,0.08721962]
[1752421518094,1.54007017,118670.0,118660.0,0.25569332]
[1752421518794,1.54007017,118670.0,118660.0,0.08721962]
[1752421518994,1.54007017,118670.0,118660.0,0.25569332]
[1752421522699,1.53995017,118670.0,118660.0,0.25569332]
[1752421523001,1.53995017,118670.0,118660.0,0.28849332]
[1752421524697,1.17915017,118670.0,118660.0,0.28849332]
[1752421525000,1.53995017,118670.0,118660.0,0.28849332]
[1752421525799,1.53995017,118670.0,118660.0,0.18657332]
[1752421526200,1.53995017,118670.0,118660.0,0.01809962]
[1752421527500,1.53995017,118670.0,118660.0,0.0021565]
[1752421533198,0.2642039,118660.0,118650.0,0.1686881]
[1752421533396,0.93128243,118660.0,118650.0,0.1684881]
[1752421534605,0.93228243,118660.0,118650.0,0.1694881]
[1752421534803,0.93428243,118660.0,118650.0,0.1704881]
[1752421536303,0.93428243,118660.0,118650.0,0.002]
[1752421536500,0.93428243,118660.0,118650.0,0.1704881]
[1752421536898,0.93428243,118660.0,118650.0,0.002]
[1752421537305,0.94257616,118660.0,118650.0,0.002]
[1752421538904,0.94257616,118660.0,118650.0,0.1704881]
[1752421541006,0.94257616,118660.0,118650.0,0.002]
[1752421541204,0.94257616,118660.0,118650.0,0.1704881]
[1752421543309,0.94457616,118660.0,118650.0,0.1704881]
[1752421544310,0.94457616,118660.0,118650.0,0.002]
[1752421545512,0.94457616,118660.0,118650.0,0.1704881]
[1752421547013,0.94457616,118660.0,118650.0,0.002]
[1752421547205,0.65791878,118660.0,118650.0,0.002]
[1752421547412,0.94457616,118660.0,118650.0,0.2423881]
[1752421550714,0.65791878,118660.0,118650.0,0.2423881]
[1752421550911,0.94457616,118660.0,118650.0,0.2423881]
[1752421551409,0.94457616,118660.0,118650.0,0.0739]
[1752421552213,0.94357616,118660.0,118650.0,0.0729]
[1752421552414,0.94457616,118660.0,118650.0,0.0739]
[1752421553017,0.94457616,118660.0,118650.0,0.2423884]
[1752421553213,1.53221616,118660.0,118650.0,0.2423884]
[1752421553413,1.53221616,118660.0,118650.0,0.0739]
[1752421553612,1.53221616,118660.0,118650.0,0.2423884]
[1752421554214,1.53221616,118660.0,118650.0,0.0739]
[1752421557825,1.53217616,118660.0,118650.0,0.0739]
[1752421560324,1.53217616,118660.0,118650.0,0.002]
[1752421561121,0.2590484,118650.0,118640.0,0.0018857]
[1752421561323,1.29098586,118650.0,118640.0,0.0016857]
[1752421563025,1.29498586,118650.0,118640.0,0.0036857]
[1752421564236,0.2213226,118640.0,118630.0,0.0002]
[1752421564427,0.2213226,118640.0,118620.0,0.07234]
[1752421564428,0.2553968,118630.0,118620.0,0.07234]
[1752421564728,0.65331095,118630.0,118620.0,0.07214]
[1752421564926,0.93996833,118630.0,118620.0,0.271951]
[1752421565128,0.93996833,118630.0,118620.0,0.10342]
[1752421565328,0.93996833,118630.0,118620.0,0.271951]
[1752421565632,0.92134718,118630.0,118620.0,0.272951]
[1752421565828,0.94044385,118630.0,118620.0,0.10442]
[1752421566229,1.00721031,118630.0,118620.0,0.10442]
[1752421566431,1.00721031,118630.0,118620.0,0.272951]
[1752421566634,0.94044385,118630.0,118620.0,0.272951]
[1752421566930,0.94144385,118630.0,118620.0,0.272951]
[1752421568923,0.52378385,118630.0,118620.0,0.633751]
[1752421569126,1.11130385,118630.0,118620.0,0.633751]
[1752421569323,1.16816385,118630.0,118620.0,0.272951]
[1752421571530,1.23597582,118630.0,118620.0,0.272951]
[1752421571824,1.59677582,118630.0,118620.0,0.001]
[1752421572031,1.59677582,118630.0,118620.0,0.07314]
[1752421572220,1.59677582,118630.0,118620.0,0.04856]
[1752421573426,1.59677582,118630.0,118620.0,0.001]
[1752421575138,1.59677582,118630.0,118620.0,0.07314]
[1752421578334,0.64845582,118630.0,118620.0,0.2416714]
[1752421578532,1.59673582,118630.0,118620.0,0.2729514]
[1752421578733,1.60073582,118630.0,118620.0,0.2719514]
[1752421579240,1.60073582,118630.0,118620.0,0.10342]
[1752421580034,1.60073582,118630.0,118620.0,0.2719514]
[1752421580431,1.23993582,118630.0,118620.0,0.2719514]
[1752421580741,1.23893582,118630.0,118620.0,0.2719514]
[1752421580933,0.30993844,118630.0,118620.0,0.91940878]
[1752421581134,0.82960677,118630.0,118620.0,0.6327514]
[1752421581443,0.82960677,118630.0,118620.0,0.91940878]
[1752421582041,0.82960677,118630.0,118620.0,0.6327514]
[1752421582244,0.79958677,118630.0,118620.0,0.6327514]
[1752421583439,0.21210667,118630.0,118620.0,0.91940878]
[1752421583637,0.79954667,118630.0,118620.0,0.91940878]
[1752421583838,0.04358967,118630.0,118620.0,0.91940878]
[1752421584442,0.21210667,118630.0,118620.0,0.91940878]
[1752421585046,0.04358967,118630.0,118620.0,0.91940878]
[1752421585943,0.02609667,118630.0,118620.0,1.33800878]
[1752421586251,0.18835184,118650.0,118640.0,0.2715429]
[1752421586440,0.18835184,118650.0,118640.0,1.29757659]
[1752421586441,0.01986314,118650.0,118640.0,1.29757659]
[1752421586740,0.002,118650.0,118640.0,2.00280197]
[1752421586942,0.22832604,118670.0,118660.0,0.2004645]
[1752421587146,0.30091204,118670.0,118660.0,0.91897188]
[1752421587442,0.25879604,118670.0,118660.0,0.91497188]
[1752421587643,0.21668004,118670.0,118660.0,0.6283145]
[1752421588142,0.21668004,118670.0,118660.0,0.63660455]
[1752421588441,0.22168004,118670.0,118660.0,0.63660455]
[1752421589142,0.22168004,118670.0,118660.0,0.63260455]
[1752421589944,0.22668004,118670.0,118660.0,0.63360455]
[1752421590448,0.22168004,118670.0,118660.0,0.63360455]
[1752421590743,0.21768004,118670.0,118660.0,0.63560455]
[1752421590947,0.01874214,118670.0,118660.0,0.63560455]
[1752421591147,0.18720244,118670.0,118660.0,0.92226193]
[1752421591942,0.18720244,118670.0,118660.0,0.63560455]
[1752421594847,0.21767244,118670.0,118660.0,0.63560455]
[1752421596146,0.18720244,118670.0,118660.0,0.63560455]
[1752421596346,0.01874214,118670.0,118660.0,0.63560455]
[1752421596546,0.18720234,118670.0,118660.0,0.63560455]
[1752421596943,0.001,118670.0,118660.0,0.65314324]
[1752421597139,0.001,118670.0,118660.0,0.93980062]
[1752421598144,0.18841871,118670.0,118660.0,0.93980062]
[1752421598449,0.18841871,118670.0,118660.0,0.65314324]
[1752421599549,0.001,118670.0,118660.0,0.65314324]
[1752421599846,0.1694603,118670.0,118660.0,0.65314324]
[1752421600047,0.18842217,118670.0,118660.0,0.65314324]
[1752421600244,0.01996187,118670.0,118660.0,0.65314324]
[1752421601047,0.18842217,118670.0,118660.0,0.65314324]
[1752421601248,0.01996187,118670.0,118660.0,0.65314324]
[1752421601849,0.18842217,118670.0,118660.0,0.65314324]
[1752421602049,0.21889217,118670.0,118660.0,0.65314324]
[1752421602245,0.50554955,118670.0,118660.0,0.65314324]
[1752421602450,0.33708925,118670.0,118660.0,0.65314324]
[1752421602649,0.50554955,118670.0,118660.0,0.65314324]
[1752421603149,0.33708925,118670.0,118660.0,0.65314324]
[1752421603653,0.05043187,118670.0,118660.0,0.65314324]
[1752421604049,0.01996187,118670.0,118660.0,0.65314324]
[1752421604551,0.01996187,118670.0,118660.0,0.93980062]
[1752421604750,0.01996187,118670.0,118660.0,1.30060062]
[1752421605340,0.004,118690.0,118680.0,0.2714861]
[1752421605541,0.004,118690.0,118680.0,2.09302348]
[1752421605750,0.004,118690.0,118680.0,2.45382348]
[1752421607053,0.008,118690.0,118680.0,2.45482348]
[1752421607546,0.008,118690.0,118680.0,2.45382348]
[1752421607847,0.005,118690.0,118680.0,2.45482348]
[1752421608453,0.005,118690.0,118680.0,2.1681661]
[1752421608656,0.55869928,118690.0,118680.0,0.2724861]
[1752421609254,0.91949928,118690.0,118680.0,0.2724861]
[1752421609455,0.6328419,118690.0,118680.0,0.2724861]
[1752421609651,0.55869928,118690.0,118680.0,0.2724861]
[1752421609850,0.91949928,118690.0,118680.0,0.2724861]
[1752421610352,0.89669928,118690.0,118680.0,0.2724861]
[1752421610553,1.1516619,118690.0,118680.0,0.55914348]
[1752421610752,0.6100419,118690.0,118680.0,0.2724861]
[1752421610955,0.2492419,118690.0,118680.0,0.6332861]
[1752421611159,0.55869928,118690.0,118680.0,0.2724861]
[1752421612454,0.2720419,118690.0,118680.0,0.2724861]
[1752421612856,0.55869928,118690.0,118680.0,0.2724861]
[1752421614958,0.56169928,118690.0,118680.0,0.2734861]
[1752421615557,0.55969928,118690.0,118680.0,0.2724861]
[1752421616453,1.14657928,118690.0,118680.0,0.2724861]
[1752421617460,1.16552499,118690.0,118680.0,0.2724861]
[1752421617855,1.52632499,118690.0,118680.0,0.2724861]
[1752421618057,1.16552499,118690.0,118680.0,0.2724861]
[1752421619261,1.52632499,118690.0,118680.0,0.2724861]
[1752421619461,1.50737928,118690.0,118680.0,0.2724861]
[1752421620854,1.50737928,118690.0,118680.0,0.2261161]
[1752421620855,1.52632413,118690.0,118680.0,0.2261161]
[1752421621055,1.52632413,118690.0,118680.0,0.1941261]
[1752421621558,1.52632413,118690.0,118680.0,0.2428161]
[1752421622862,1.52632413,118690.0,118680.0,0.1941261]
[1752421623461,0.93944413,118690.0,118680.0,0.2274461]
[1752421623663,1.52620413,118690.0,118680.0,0.2761361]
[1752421624558,1.16540413,118690.0,118680.0,0.2761361]
[1752421624763,1.52620413,118690.0,118680.0,0.2761361]
[1752421624963,1.16540413,118690.0,118680.0,0.2761361]
[1752421625158,1.23954675,118690.0,118680.0,0.2761361]
[1752421625361,0.93944413,118690.0,118680.0,0.2761361]
[1752421625563,1.16540413,118690.0,118680.0,0.2761361]
[1752421626166,0.87874675,118690.0,118680.0,0.6369361]
[1752421626465,0.87874675,118690.0,118680.0,0.2761361]
[1752421627365,0.26918675,118690.0,118680.0,0.2761361]
[1752421627562,0.85594675,118690.0,118680.0,0.2761361]
[1752421627764,0.81056675,118690.0,118680.0,0.92359348]
[1752421628067,0.22384675,118690.0,118680.0,0.6369361]
[1752421628971,0.02494485,118690.0,118680.0,0.92359348]
[1752421632479,0.02491255,118690.0,118680.0,0.92359348]
[1752421633183,0.02391255,118690.0,118680.0,0.92259348]
[1752421633383,0.02491255,118690.0,118680.0,0.92359348]
[1752421634684,0.02391255,118690.0,118680.0,0.92459348]
[1752421636285,0.07668,118720.0,118710.0,0.2017238]
[1752421636480,0.07668,118720.0,118710.0,0.92211118]
[1752421636882,0.07668,118720.0,118710.0,0.6354538]
[1752421637477,0.08168,118720.0,118710.0,0.6364538]
[1752421637981,0.07868,118720.0,118710.0,0.6364538]
[1752421638187,0.08168,118720.0,118710.0,0.6374538]
[1752421638983,0.07968,118720.0,118710.0,0.6364538]
[1752421642481,0.003,118720.0,118710.0,0.6364538]
[1752421642681,0.50113068,118730.0,118720.0,0.1683897]
[1752421642682,0.004,118730.0,118720.0,0.1683897]
[1752421642887,0.004,118730.0,118720.0,2.10948905]
[1752421643983,0.2034155,118730.0,118720.0,1.82283167]
[1752421644187,0.54158288,118730.0,118720.0,1.82383167]
[1752421644393,0.54158288,118730.0,118720.0,1.46303167]
[1752421644988,0.2529255,118730.0,118720.0,1.82383167]
[1752421645187,0.2757255,118730.0,118720.0,1.46303167]
[1752421645384,0.2757255,118730.0,118720.0,0.29007167]
[1752421645583,0.2757255,118730.0,118720.0,1.46287167]
[1752421645783,0.56238288,118730.0,118720.0,1.46287167]
[1752421646483,0.56238288,118730.0,118720.0,0.29007167]
[1752421646892,0.56238288,118730.0,118720.0,0.28907167]
[1752421647083,0.56538288,118730.0,118720.0,0.24138167]
[1752421647588,0.92618288,118730.0,118720.0,0.24138167]
[1752421647979,0.92718288,118730.0,118720.0,0.24138167]
[1752421648385,0.94596616,118730.0,118720.0,0.24138167]
[1752421648684,0.58516616,118730.0,118720.0,0.2237697]
[1752421648892,0.29850878,118730.0,118720.0,0.2237697]
[1752421649086,0.94596616,118730.0,118720.0,0.2237697]
[1752421649292,0.94596616,118730.0,118720.0,0.2694397]
[1752421649499,0.58516616,118730.0,118720.0,0.2694397]
[1752421654596,0.29850878,118730.0,118720.0,0.2694397]
[1752421654797,0.58516616,118730.0,118720.0,0.2694397]
[1752421659797,0.56638288,118730.0,118720.0,0.2694397]
[1752421659997,0.58508225,118730.0,118720.0,0.2694397]
[1752421661500,0.58508225,118730.0,118720.0,0.1936297]
[1752421661694,0.94588225,118730.0,118720.0,0.1693897]
[1752421661999,0.58508225,118730.0,118720.0,0.1693897]
[1752421662299,0.94588225,118730.0,118720.0,0.1693897]
[1752421662695,1.53204225,118730.0,118720.0,0.1693897]
[1752421664189,0.94588225,118730.0,118720.0,0.1693897]
[1752421664394,1.53200225,118730.0,118720.0,0.1930897]
[1752421666294,1.17120225,118730.0,118720.0,0.1930897]
[1752421666702,1.53200225,118730.0,118720.0,0.1930897]
[1752421670000,0.58508225,118730.0,118720.0,0.2688997]
[1752421670206,0.86170487,118730.0,118720.0,0.6296997]
[1752421670404,0.27562487,118730.0,118720.0,0.6296997]
[1752421670705,0.86170487,118730.0,118720.0,0.6296997]
[1752421671199,1.14836225,118730.0,118720.0,0.6296997]
[1752421671400,1.14836225,118730.0,118720.0,0.2688997]
[1752421671605,1.14836225,118730.0,118720.0,0.6296997]
[1752421671801,1.14836225,118730.0,118720.0,0.2688997]
[1752421672505,0.56228225,118730.0,118720.0,0.2688997]
[1752421672705,1.14832225,118730.0,118720.0,0.2688997]
[1752421673300,1.17112225,118730.0,118720.0,0.2688997]
[1752421674003,0.86166487,118730.0,118720.0,0.2688997]
[1752421674800,0.88446487,118730.0,118720.0,0.2688997]
[1752421676309,1.17112225,118730.0,118720.0,0.2688997]
[1752421678110,1.53192225,118730.0,118720.0,0.2688997]
[1752421678320,1.17112225,118730.0,118720.0,0.2688997]
[1752421680609,1.37044025,118730.0,118720.0,0.2688997]
[1752421686415,1.35174088,118730.0,118720.0,0.2688997]
[1752421686621,1.37044168,118730.0,118720.0,0.2688997]
[1752421686813,1.73124168,118730.0,118720.0,0.2688997]
[1752421687013,1.37044168,118730.0,118720.0,0.2688997]
[1752421687926,1.37044168,118730.0,118710.0,0.1686022]
[1752421687927,0.2714197,118720.0,118710.0,0.1686022]
[1752421688219,0.1990439,118710.0,118700.0,0.318548]
[1752421688408,1.52343208,118710.0,118700.0,0.2762438]
[1752421688811,1.2367747,118710.0,118700.0,0.2762438]
[1752421689121,1.52343208,118710.0,118700.0,0.2762438]
[1752421689722,1.52343208,118710.0,118700.0,0.2772438]
[1752421689923,1.52343208,118710.0,118700.0,0.2782438]
[1752421690217,1.72275008,118710.0,118700.0,0.2782438]
[1752421690425,1.13691008,118710.0,118700.0,0.3083538]
[1752421690615,1.36195008,118710.0,118700.0,0.3558838]
[1752421691423,1.0524927,118710.0,118700.0,0.66021815]
[1752421691620,0.8840488,118710.0,118700.0,1.02101815]
[1752421691822,1.0524528,118710.0,118700.0,1.02101815]
[1752421692021,1.0524528,118710.0,118700.0,0.37356077]
[1752421692224,1.0524528,118710.0,118700.0,0.73436077]
[1752421692524,1.0524528,118710.0,118700.0,0.37356077]
[1752421692929,1.0752528,118710.0,118700.0,0.37356077]
[1752421693330,1.36191018,118710.0,118700.0,0.37356077]
[1752421694125,1.0752528,118710.0,118700.0,0.37356077]
[1752421694725,0.8840488,118710.0,118700.0,1.02101815]
[1752421695120,0.2982488,118710.0,118700.0,1.02101815]
[1752421695321,0.8840488,118710.0,118700.0,1.02101815]
[1752421697326,0.2982488,118710.0,118700.0,1.02101815]